fUST/lending_fUST_20240619
["ID","MTS","AMOUNT","RATE_DAILY","PERIOD"]
[329857285,1718766639819,-544.96550127,0.0001646,2]
[329857286,1718766639829,-486.84083024,0.0001646,2]
[329857287,1718766639839,-504.3765596,0.0001646,2]
[329857288,1718766639850,-505.2382655,0.0001646,2]
[329857289,1718766639860,-627.43,0.0001646,2]
[329857290,1718766639869,-548.85560865,0.0001646,2]
[329857291,1718766639880,-500.0,0.0001646,2]
[329857292,1718766639889,-365.75713048,0.00016461,7]
[329857293,1718766639899,-499.99956103,0.00016461,2]
[329857294,1718766639909,-512.36501679,0.00016461,2]
[329857295,1718766639919,-518.47293782,0.00016461,2]
[329857296,1718766639928,-500.0,0.00016461,2]
[329857297,1718766639938,-506.55776553,0.00016461,2]
[329857298,1718766639951,-511.52252571,0.00016461,2]
[329857299,1718766639961,-517.04205744,0.00016461,2]
[329857300,1718766639969,-500.0,0.00016461,2]
[329857301,1718766639978,-507.66867027,0.00016461,2]
[329857302,1718766639988,-516.71558163,0.00016461,2]
[329857303,1718766639998,-503.27944279,0.00016461,2]
[329857304,1718766640008,-500.0,0.00016461,2]
[329857305,1718766640017,-502.98894957,0.00016461,2]
[329857306,1718766640027,-500.0,0.00016461,2]
[329857307,1718766640036,-518.64550808,0.00016461,2]
[329857308,1718766640046,-505.73081,0.00016461,2]
[329857309,1718766640056,-529.32747521,0.00016461,2]
[329857310,1718766640065,-502.35936241,0.00016461,2]
[329857311,1718766640075,-500.0,0.00016461,2]
[329857312,1718766640086,-517.52169013,0.00016461,2]
[329857313,1718766640096,-509.65370843,0.00016461,2]
[329857314,1718766640105,-645.88362547,0.00016461,2]
[329857315,1718766640115,-540.25833695,0.00016461,2]
[329857316,1718766640125,-512.90063793,0.00016461,2]
[329857317,1718766640135,-509.74393477,0.00016461,2]
[329857318,1718766640145,-500.0,0.00016461,2]
[329857319,1718766640155,-520.20065753,0.00016461,2]
[329857320,1718766640165,-506.19455153,0.00016461,2]
[329857321,1718766640174,-535.58080609,0.00016461,2]
[329857322,1718766640184,-509.53020574,0.00016461,2]
[329857323,1718766640193,-513.0054323,0.00016461,2]
[329857324,1718766640204,-528.72786793,0.00016461,2]
[329857325,1718766640213,-520.20793807,0.00016461,2]
[329857326,1718766640223,-507.23512692,0.00016461,2]
[329857327,1718766640232,-536.01259323,0.00016461,2]
[329857328,1718766640242,-511.13441678,0.00016461,2]
[329857329,1718766640252,-507.60381836,0.00016461,2]
[329857330,1718766640261,-635.4525867,0.00016461,2]
[329857331,1718766640271,-170.08592555,0.00016461,2]
[329857332,1718766640281,-510.48192413,0.00016461,2]
[329857333,1718766640291,-510.13737675,0.00016461,2]
[329857334,1718766640300,-505.51118912,0.00016461,2]
[329857335,1718766640310,-503.30677901,0.00016461,2]
[329857336,1718766640319,-500.0,0.00016461,2]
[329857337,1718766640329,-500.0,0.00016461,2]
[329857338,1718766640339,-500.0,0.00016461,2]
[329857339,1718766640348,-507.37465671,0.00016461,2]
[329857340,1718766640358,-500.0,0.00016461,2]
[329857341,1718766640368,-502.65807848,0.00016461,2]
[329857342,1718766640377,-515.26228202,0.00016461,2]
[329857343,1718766640386,-506.07492424,0.00016461,2]
[329857344,1718766640396,-543.19561048,0.00016461,2]
[329857345,1718766640406,-500.0,0.00016461,2]
[329857346,1718766640415,-510.54384337,0.00016461,2]
[329857347,1718766640424,-505.90540945,0.00016461,2]
[329857348,1718766640434,-506.80387207,0.00016461,2]
[329857349,1718766640444,-550.85176416,0.00016461,2]
[329857350,1718766640456,-1002.91,0.00016461,2]
[329857351,1718766640465,-623.1437149,0.00016461,2]
[329857352,1718766640474,-506.94991212,0.00016461,2]
[329857353,1718766640483,-500.0,0.00016461,2]
[329857354,1718766640492,-512.95410034,0.00016461,2]
[329857355,1718766640501,-505.26724938,0.00016461,2]
[329857356,1718766640510,-504.29999379,0.00016461,2]
[329857357,1718766640519,-506.09000219,0.00016461,2]
[329857358,1718766640529,-505.94122184,0.00016461,2]
[329857359,1718766640539,-506.10729006,0.00016461,2]
[329857360,1718766640549,-506.56929573,0.00016461,2]
[329857361,1718766640558,-512.91967464,0.00016461,2]
[329857362,1718766640568,-505.61094015,0.00016461,2]
[329857363,1718766640577,-500.35697127,0.00016461,2]
[329857364,1718766640587,-575.30779469,0.00016461,2]
[329857365,1718766640596,-505.39505761,0.00016461,2]
[329857366,1718766640605,-525.19049243,0.00016461,2]
[329857367,1718766640615,-518.57775469,0.00016461,2]
[329857368,1718766640624,-7580.74,0.00016461,2]
[329857369,1718766640634,-505.85107377,0.00016461,2]
[329857370,1718766640643,-442.38723025,0.00016461,2]
[329857371,1718766640653,-532.60656351,0.00016461,2]
[329857372,1718766640662,-501.42637963,0.00016461,2]
[329857373,1718766640672,-501.53398554,0.00016461,2]
[329857374,1718766640681,-516.25501997,0.00016461,2]
[329857375,1718766640690,-515.48621645,0.00016461,2]
[329857376,1718766640702,-501.09114136,0.00016461,2]
[329857377,1718766640711,-513.52768549,0.00016461,2]
[329857378,1718766640721,-502.44643794,0.00016461,2]
[329857379,1718766640730,-509.7643079,0.00016461,2]
[329857380,1718766640739,-505.66603949,0.00016461,2]
[329857381,1718766640750,-516.3815293,0.00016461,2]
[329857382,1718766640760,-500.0,0.00016461,2]
[329857384,1718766640775,-507.60917669,0.00016461,2]
[329857386,1718766640784,-513.93452748,0.00016461,2]
[329857388,1718766640794,-513.42364844,0.00016461,2]
[329857390,1718766640803,-500.0,0.00016461,2]
[329857391,1718766640814,-508.57672528,0.00016461,2]
[329857392,1718766640823,-455.06654984,0.00016461,2]
[329857393,1718766640833,-510.99353927,0.00016461,2]
[329857394,1718766640843,-513.67095743,0.00016461,2]
[329857395,1718766640853,-500.0,0.00016461,2]
[329857396,1718766640862,-514.03304091,0.00016461,2]
[329857397,1718766640871,-523.76837718,0.00016461,2]
[329857398,1718766640880,-500.0,0.00016461,2]
[329857399,1718766640890,-504.94864667,0.00016461,2]
[329857400,1718766640899,-500.0,0.00016461,2]
[329857401,1718766640908,-508.20383658,0.00016461,2]
[329857402,1718766640918,-501.48664393,0.00016461,2]
[329857403,1718766640928,-565.53246639,0.00016461,2]
[329857404,1718766640938,-506.35342674,0.00016461,2]
[329857405,1718766640948,-500.0,0.00016461,2]
[329857406,1718766640959,-508.7979985,0.00016461,2]
[329857407,1718766640969,-500.0,0.00016461,2]
[329857408,1718766640978,-531.48241085,0.00016461,2]
[329857409,1718766640988,-506.28935808,0.00016461,2]
[329857410,1718766640998,-502.79249052,0.00016461,2]
[329857411,1718766641008,-510.3112504,0.00016461,2]
[329857412,1718766641018,-42590.48214109,0.00016462,2]
[329857413,1718766641028,-500.0,0.00016462,2]
[329857414,1718766641038,-156.607999,0.00016462,2]
[329857415,1718766641048,-151.0,0.00016462,2]
[329857416,1718766641058,-500.0,0.00016463,2]
[329857417,1718766641067,-511.92525018,0.00016463,2]
[329857418,1718766641077,-514.89816652,0.00016463,2]
[329857419,1718766641087,-437.42277174,0.00016463,2]
[329857420,1718766641097,-506.35142909,0.00016463,2]
[329857421,1718766641106,-508.10658105,0.00016463,2]
[329857422,1718766641116,-500.0,0.00016463,2]
[329857423,1718766641126,-538.48951959,0.00016463,2]
[329857424,1718766641136,-500.0,0.00016463,2]
[329857425,1718766641146,-511.90751147,0.00016463,2]
[329857426,1718766641156,-507.07411023,0.00016463,2]
[329857427,1718766641166,-507.52397709,0.00016463,2]
[329857428,1718766641176,-514.1903349,0.00016463,2]
[329857429,1718766641186,-504.46648094,0.00016463,2]
[329857430,1718766641196,-501.79863618,0.00016463,2]
[329857431,1718766641207,-541.50717129,0.00016463,2]
[329857432,1718766641217,-505.44279312,0.00016463,2]
[329857433,1718766641228,-514.78525205,0.00016463,2]
[329857434,1718766641238,-509.61255725,0.00016463,2]
[329857435,1718766641247,-518.75884869,0.00016463,2]
[329857436,1718766641257,-517.14796319,0.00016463,2]
[329857437,1718766641266,-509.39102447,0.00016463,2]
[329857438,1718766641276,-603.58392086,0.00016463,2]
[329857439,1718766641286,-511.09147887,0.00016463,2]
[329857440,1718766641296,-613.37261175,0.00016463,2]
[329857441,1718766641306,-515.87775531,0.00016463,2]
[329857442,1718766641316,-518.69873773,0.00016463,2]
[329857443,1718766641326,-534.36119858,0.00016463,2]
[329857444,1718766641335,-502.62333052,0.00016463,2]
[329857446,1718766641344,-507.78230594,0.00016463,2]
[329857449,1718766641354,-585.78820829,0.00016463,2]
[329857453,1718766641364,-506.6565403,0.00016463,2]
[329857457,1718766641373,-518.78561575,0.00016463,2]
[329857460,1718766641383,-507.36362089,0.00016463,2]
[329857463,1718766641393,-554.65784858,0.00016463,2]
[329857466,1718766641402,-508.89601265,0.00016463,2]
[329857469,1718766641411,-507.22867297,0.00016463,2]
[329857472,1718766641421,-520.02093175,0.00016463,2]
[329857474,1718766641431,-510.12469224,0.00016463,2]
[329857476,1718766641440,-506.44047267,0.00016463,2]
[329857478,1718766641449,-513.7672588,0.00016463,2]
[329857479,1718766641462,-520.36270965,0.00016463,2]
[329857481,1718766641472,-596.27256418,0.00016463,2]
[329857483,1718766641482,-507.52238237,0.00016463,2]
[329857485,1718766641492,-508.49465035,0.00016463,2]
[329857488,1718766641501,-511.91545329,0.00016463,2]
[329857489,1718766641511,-507.48131837,0.00016463,2]
[329857491,1718766641520,-508.65345636,0.00016463,2]
[329857493,1718766641530,-512.48033948,0.00016463,2]
[329857495,1718766641540,-501.5877594,0.00016463,2]
[329857497,1718766641550,-500.0,0.00016463,2]
[329857499,1718766641560,-513.85668888,0.00016463,2]
[329857502,1718766641571,-510.25772352,0.00016463,2]
[329857504,1718766641580,-551.31772014,0.00016463,2]
[329857505,1718766641589,-508.53131749,0.00016463,2]
[329857507,1718766641599,-502.32925329,0.00016463,2]
[329857509,1718766641609,-151.0,0.00016463,2]
[329857512,1718766641619,-500.82687171,0.00016463,2]
[329857514,1718766641629,-500.0,0.00016463,2]
[329857516,1718766641639,-500.76024594,0.00016463,2]
[329857518,1718766641648,-502.78529956,0.00016463,2]
[329857519,1718766641657,-513.07936172,0.00016463,2]
[329857521,1718766641666,-500.0,0.00016463,2]
[329857523,1718766641675,-500.0,0.00016463,2]
[329857525,1718766641685,-151.00000081,0.00016463,2]
[329857527,1718766641694,-500.56605573,0.00016463,2]
[329857529,1718766641704,-505.38992093,0.00016463,2]
[329857531,1718766641714,-500.9814681,0.00016463,2]
[329857533,1718766641724,-518.1216676,0.00016463,2]
[329857535,1718766641733,-510.05705077,0.00016463,2]
[329857537,1718766641744,-503.13155159,0.00016463,2]
[329857539,1718766641755,-502.52753708,0.00016463,2]
[329857541,1718766641767,-222.25452754,0.00016463,2]
[329857543,1718766641777,-500.0,0.00016463,2]
[329857545,1718766641786,-502.47308783,0.00016463,2]
[329857547,1718766641796,-502.9352987,0.00016463,2]
[329857549,1718766641805,-507.61362336,0.00016463,2]
[329857551,1718766641815,-190.15582296,0.00016463,2]
[329857553,1718766641824,-507.05741299,0.00016463,2]
[329857555,1718766641833,-536.63327038,0.00016463,2]
[329857557,1718766641844,-151.0,0.00016463,2]
[329857559,1718766641854,-499.39660205,0.00016463,2]
[329857561,1718766641863,-504.26970294,0.00016463,2]
[329857563,1718766641872,-509.76088522,0.00016463,2]
[329857565,1718766641881,-509.36810827,0.00016463,2]
[329857567,1718766641890,-511.41065937,0.00016463,2]
[329857569,1718766641899,-511.01137596,0.00016463,2]
[329857571,1718766641908,-500.0,0.00016463,2]
[329857573,1718766641917,-505.25147089,0.00016463,2]
[329857575,1718766641926,-513.6684912,0.00016463,2]
[329857577,1718766641936,-510.86264562,0.00016463,2]
[329857578,1718766641945,-508.81166655,0.00016463,2]
[329857580,1718766641954,-502.70193354,0.00016463,2]
[329857582,1718766641963,-161.84873555,0.00016463,2]
[329857584,1718766641972,-151.0,0.00016463,2]
[329857586,1718766641982,-156.905289,0.00016463,2]
[329857588,1718766641991,-510.85053651,0.00016463,2]
[329857590,1718766642000,-540.84571772,0.00016463,2]
[329857592,1718766642010,-492.64478843,0.00016463,2]
[329857594,1718766642020,-510.74304244,0.00016463,2]
[329857595,1718766642030,-179.508703,0.00016463,2]
[329857596,1718766642040,-508.45737281,0.00016463,2]
[329857597,1718766642051,-502.76868994,0.00016463,2]
[329857598,1718766642061,-509.03433675,0.00016463,2]
[329857599,1718766642071,-511.72959115,0.00016463,2]
[329857600,1718766642080,-515.95210279,0.00016463,2]
[329857601,1718766642090,-514.21287854,0.00016463,2]
[329857602,1718766642099,-500.0,0.00016463,2]
[329857603,1718766642109,-508.08695611,0.00016463,2]
[329857604,1718766642119,-524.63698077,0.00016463,2]
[329857605,1718766642128,-509.37428223,0.00016463,2]
[329857606,1718766642138,-270.216855,0.00016463,2]
[329857607,1718766642149,-502.34733407,0.00016463,2]
[329857608,1718766642159,-509.64115,0.00016463,2]
[329857609,1718766642168,-507.80030385,0.00016463,2]
[329857610,1718766642178,-503.1112586,0.00016463,2]
[329857611,1718766642187,-504.87912741,0.00016463,2]
[329857612,1718766642197,-500.0,0.00016465,2]
[329857614,1718766642206,-500.0,0.00016465,2]
[329857616,1718766642216,-1650.98102213,0.00016466,15]
[329857618,1718766642225,-283.02452971,0.00016466,2]
[329857620,1718766642234,-984.50064159,0.00016466,2]
[329857622,1718766642244,-500.0,0.00016466,2]
[329857624,1718766642253,-536.468081,0.00016466,2]
[329857626,1718766642262,-529.50844945,0.00016466,2]
[329857628,1718766642271,-510.4269178,0.00016466,2]
[329857630,1718766642281,-273.854166,0.00016466,2]
[329857640,1718766642368,-500.0,0.00016466,2]
[329857642,1718766642388,-318.92254585,0.00016466,2]
[329857661,1718766644129,-507.37604677,0.00016463,2]
[329857662,1718766644140,-201.29161802,0.00016466,2]
[329857664,1718766644149,-481.06998674,0.00016466,2]
[329857965,1718766647649,-500.0,0.0001646,2]
[329857966,1718766647658,-18.93001326,0.00016466,2]
[329857967,1718766647668,-500.0,0.00016466,2]
[329857968,1718766647677,-512.49993594,0.00016466,2]
[329857969,1718766647686,-500.0,0.00016466,2]
[329857970,1718766647695,-500.0,0.00016466,2]
[329857971,1718766647704,-505.57047501,0.00016466,2]
[329857972,1718766647714,-151.0,0.00016466,2]
[329857973,1718766647723,-506.23276257,0.00016466,2]
[329857974,1718766647732,-500.0,0.00016466,2]
[329857975,1718766647741,-500.0,0.00016466,2]
[329857976,1718766647750,-526.51126432,0.00016466,2]
[329857977,1718766647764,-500.0,0.00016466,2]
[329857978,1718766647773,-500.0,0.00016466,2]
[329857979,1718766647782,-181.415771,0.00016466,2]
[329857980,1718766647791,-272.75346686,0.00016466,2]
[329857981,1718766647806,-227.24653314,0.00016466,2]
[329857983,1718766647815,-500.0,0.00016466,2]
[329857985,1718766647824,-296.42680847,0.00016466,2]
[329857988,1718766647836,-203.57319153,0.00016466,2]
[329857990,1718766647847,-310.97746038,0.00016466,2]
[329857992,1718766647859,-1229.33739131,0.00016466,2]
[329859124,1718766792326,154.81422293,9.999e-05,2]
[329859125,1718766806016,521.26518714,9.999e-05,2]
[329859126,1718766828132,154.81422293,9.999e-05,2]
[329859128,1718767531463,3074.07610081,9.999e-05,2]
[329859129,1718767545090,1913.20101544,9.999e-05,2]
[329859130,1718767644339,-220.44507895,0.00014929,2]
[329859131,1718767647153,-104.74054705,0.00014929,2]
[329859132,1718767647174,-3886.52898423,0.00015,10]
[329859133,1718767647195,-300.0,0.0001545,2]
[329859134,1718767647219,-300.0,0.0001545,2]
[329859135,1718767647241,-8478.43883668,0.00015451,2]
[329859136,1718767735783,-421.19197827,0.00014871,2]
[329859137,1718767746124,-162.592813,0.00014194,2]
[329859138,1718767746146,-172.15122127,0.00014871,2]
[329859139,1718767746172,-300.0,0.00014872,2]
[329859140,1718767746194,-24900.0,0.00014873,2]
[329859141,1718767746217,-29871.53851036,0.00015,2]
[329859142,1718767746242,-1496.96850741,0.00015352,2]
[329859143,1718767746265,-5505.11452253,0.00015452,2]
[329859144,1718767746286,-200.85720718,0.00015452,2]
[329859145,1718767746307,-498.3404413,0.00015452,2]
[329859146,1718767746333,-487.5352358,0.00015452,2]
[329859147,1718767746354,-1977.31672918,0.00015452,2]
[329859148,1718767746375,-199.5249207,0.00015455,2]
[329859149,1718767746397,-235.71029594,0.00016264,2]
[329859246,1718767833531,-584.95296827,0.0001642,2]
[329859248,1718767833543,-3023.45680044,0.0001642,2]
[329859251,1718767833554,-774.65,0.0001642,2]
[329859545,1718767840766,-889.52226212,0.0001642,2]
[329859547,1718767840777,-300.0,0.00016437,2]
[329859549,1718767840787,-200.68774945,0.00016438,2]
[329859551,1718767840797,-500.0,0.00016438,2]
[329859553,1718767840807,-522.01907349,0.00016438,2]
[329859555,1718767840817,-500.0,0.00016438,2]
[329859558,1718767840837,-3071.3,0.00016438,2]
[329859560,1718767840847,-500.0,0.00016438,2]
[329859562,1718767840857,-500.0,0.00016438,2]
[329859564,1718767840868,-258.67092994,0.00016438,2]
[329859566,1718767840882,-428.67907006,0.00016438,2]
[329859568,1718767840894,-500.0,0.00016438,2]
[329859570,1718767840904,-500.0,0.00016438,2]
[329859572,1718767840914,-500.0,0.00016438,2]
[329859574,1718767840924,-913.33,0.00016438,2]
[329859576,1718767840935,-500.0,0.00016438,2]
[329859579,1718767840945,-120.39147627,0.00016438,2]
[329859581,1718767840960,-310.36840331,0.00016438,2]
[329859589,1718767841040,-69.24012042,0.00016438,2]
[329859591,1718767841050,-500.0,0.00016438,2]
[329859593,1718767841061,-500.0,0.00016438,2]
[329859595,1718767841072,-500.0,0.00016438,2]
[329859597,1718767841082,-500.0,0.00016438,2]
[329859599,1718767841093,-791.16,0.00016438,2]
[329859601,1718767841103,-500.0,0.00016438,2]
[329859603,1718767841113,-524.51370076,0.00016438,2]
[329859605,1718767841123,-500.0,0.00016438,2]
[329859607,1718767841134,-213.36247202,0.00016438,2]
[329859610,1718767841148,-286.63752798,0.00016438,2]
[329859611,1718767841158,-523.66188009,0.00016438,2]
[329859614,1718767841169,-522.4234297,0.00016438,2]
[329859616,1718767841181,-500.0,0.00016438,2]
[329859618,1718767841193,-560.88069028,0.00016438,2]
[329859620,1718767841204,-767.96,0.00016438,2]
[329859622,1718767841214,-1847.1,0.00016438,2]
[329859623,1718767841225,-500.0,0.00016438,2]
[329859625,1718767841235,-500.0,0.00016438,2]
[329859628,1718767841247,-500.0,0.00016438,2]
[329859630,1718767841257,-157.02678784,0.00016453,2]
[329859632,1718767841271,-500.0,0.00016454,2]
[329859634,1718767841282,-500.0,0.00016454,2]
[329859636,1718767841292,-198.13636072,0.00016455,2]
[329859638,1718767841303,-500.0,0.00016455,2]
[329859640,1718767841313,-500.0,0.00016455,2]
[329859642,1718767841322,-312.03888205,0.00016455,2]
[329859644,1718767841332,-312.14674895,0.00016455,2]
[329859646,1718767841342,-500.0,0.00016455,2]
[329859648,1718767841352,-500.0,0.00016455,2]
[329859650,1718767841362,-500.0,0.00016455,2]
[329859652,1718767841372,-509.06594754,0.00016455,2]
[329859654,1718767841382,-500.0,0.00016455,2]
[329859656,1718767841395,-527.17049474,0.00016455,2]
[329859658,1718767841405,-510.31902475,0.00016455,2]
[329859660,1718767841415,-500.0,0.00016455,2]
[329859662,1718767841424,-500.0,0.00016455,2]
[329859664,1718767841433,-519.45229105,0.00016455,2]
[329859666,1718767841443,-507.13096994,0.00016455,2]
[329859667,1718767841452,-326.17576598,0.00016455,2]
[329859669,1718767841469,-507.93643033,0.00016455,2]
[329859671,1718767841480,-500.0,0.00016455,2]
[329859673,1718767841490,-505.55608107,0.00016455,2]
[329859674,1718767841500,-502.02851658,0.00016455,2]
[329859675,1718767841510,-503.02520087,0.00016455,2]
[329859676,1718767841520,-500.0,0.00016455,2]
[329859677,1718767841529,-176.06596008,0.00016455,2]
[329859678,1718767841540,-500.0,0.00016455,2]
[329859679,1718767841551,-500.0,0.00016455,2]
[329859680,1718767841561,-500.0,0.00016455,2]
[329859681,1718767841572,-506.1473414,0.00016455,2]
[329859682,1718767841586,-500.0,0.00016455,2]
[329859683,1718767841602,-209.24472364,0.00016455,2]
[329859684,1718767841613,-619.43,0.00016455,2]
[329859686,1718767841623,-1141.57,0.00016455,2]
[329859689,1718767841633,-515.95058441,0.00016455,2]
[329859690,1718767841646,-509.46634472,0.00016455,2]
[329859692,1718767841655,-500.0,0.00016455,2]
[329859693,1718767841664,-510.60396018,0.00016455,2]
[329859694,1718767841674,-7560.48928331,0.00016455,2]
[329859695,1718767841712,-235.75071669,0.00016455,2]
[329859696,1718767841722,-500.0,0.00016455,2]
[329859697,1718767841732,-500.0,0.00016455,2]
[329859698,1718767841743,-500.0,0.00016455,2]
[329859699,1718767841753,-500.0,0.00016455,2]
[329859700,1718767841763,-500.0,0.00016455,2]
[329859701,1718767841772,-554.28786932,0.00016455,2]
[329859702,1718767841783,-509.12894903,0.00016455,2]
[329859703,1718767841793,-17881.80309114,0.00016456,2]
[329859704,1718767841803,-321.11403999,0.00016458,2]
[329859705,1718767841813,-155.13012098,0.00016458,2]
[329859706,1718767841823,-500.0,0.00016458,2]
[329859707,1718767841833,-500.0,0.00016459,2]
[329859708,1718767841842,-337.72101887,0.00016459,2]
[329859709,1718767841852,-502.22861499,0.00016459,2]
[329859710,1718767841862,-501.34021178,0.00016459,2]
[329859711,1718767841872,-513.85711662,0.00016459,2]
[329859712,1718767841882,-204.62245564,0.00016459,2]
[329859713,1718767841894,-500.0,0.00016459,2]
[329859714,1718767841904,-526.82175282,0.00016459,2]
[329859715,1718767841914,-500.0,0.00016459,2]
[329859716,1718767841925,-500.0,0.00016459,2]
[329859717,1718767841935,-500.0,0.00016459,2]
[329859718,1718767841945,-520.24380106,0.00016459,2]
[329859719,1718767841954,-511.35655866,0.00016459,2]
[329859720,1718767841964,-500.0,0.00016459,2]
[329859721,1718767841973,-500.0,0.00016459,2]
[329859722,1718767841983,-526.90484179,0.00016459,2]
[329859723,1718767841992,-500.0,0.00016459,2]
[329859724,1718767842001,-576.89783916,0.00016459,2]
[329859725,1718767842010,-500.0,0.00016459,2]
[329859726,1718767842021,-502.61666804,0.00016459,2]
[329859727,1718767842031,-518.84524174,0.00016459,2]
[329859728,1718767842041,-510.71692783,0.00016459,2]
[329859729,1718767842051,-487.642868,0.00016459,2]
[329859730,1718767842060,-521.35175107,0.00016459,2]
[329859731,1718767842070,-500.0,0.00016459,2]
[329859732,1718767842080,-500.0,0.00016459,2]
[329859734,1718767842090,-500.0,0.00016459,2]
[329859735,1718767842100,-506.94058723,0.00016459,2]
[329859737,1718767842110,-500.0,0.00016459,2]
[329859739,1718767842120,-500.0,0.00016459,2]
[329859741,1718767842130,-500.0,0.00016459,2]
[329859743,1718767842141,-500.0,0.00016459,2]
[329859745,1718767842151,-500.0,0.00016459,2]
[329859747,1718767842161,-500.0,0.00016459,2]
[329859749,1718767842171,-500.0,0.00016459,2]
[329859750,1718767842187,-500.0,0.00016459,2]
[329859751,1718767842198,-506.87522942,0.00016459,2]
[329859752,1718767842208,-507.41255932,0.00016459,2]
[329859753,1718767842219,-513.05270935,0.00016459,2]
[329859754,1718767842230,-523.24605613,0.00016459,2]
[329859755,1718767842239,-500.0,0.00016459,2]
[329859756,1718767842249,-500.0,0.00016459,2]
[329859757,1718767842261,-511.44162009,0.00016459,2]
[329859758,1718767842270,-500.0,0.00016459,2]
[329859759,1718767842280,-511.30748835,0.00016459,2]
[329859760,1718767842290,-500.0,0.00016459,2]
[329859761,1718767842300,-507.00762839,0.00016459,2]
[329859762,1718767842310,-505.30217317,0.0001646,2]
[329859763,1718767842320,-509.13224675,0.0001646,2]
[329859764,1718767842329,-500.0,0.0001646,2]
[329859765,1718767842340,-500.0,0.0001646,2]
[329859766,1718767842349,-500.0,0.0001646,2]
[329859767,1718767842359,-500.0,0.0001646,2]
[329859768,1718767842369,-502.2485112,0.0001646,2]
[329859769,1718767842379,-500.0,0.0001646,2]
[329859770,1718767842389,-500.0,0.0001646,2]
[329859771,1718767842398,-500.0,0.0001646,2]
[329859772,1718767842408,-512.74045205,0.0001646,2]
[329859773,1718767842418,-500.0,0.0001646,2]
[329859774,1718767842428,-508.60580619,0.0001646,2]
[329859775,1718767842438,-500.0,0.0001646,2]
[329859776,1718767842447,-500.0,0.0001646,2]
[329859777,1718767842457,-452.48491981,0.0001646,2]
[329859778,1718767842488,-500.0,0.0001646,2]
[329859779,1718767842498,-503.16376079,0.0001646,2]
[329859780,1718767842508,-151.0,0.0001646,2]
[329859781,1718767842518,-505.89150928,0.0001646,2]
[329859782,1718767842527,-195.528189,0.0001646,2]
[329859783,1718767842538,-500.0,0.0001646,2]
[329859785,1718767842547,-508.99213877,0.0001646,2]
[329859787,1718767842557,-501.64756976,0.0001646,2]
[329859789,1718767842566,-509.61438957,0.0001646,2]
[329859791,1718767842576,-500.0,0.0001646,2]
[329859793,1718767842585,-151.0,0.0001646,2]
[329859795,1718767842594,-509.14546766,0.0001646,2]
[329859796,1718767842603,-514.84476075,0.0001646,2]
[329859811,1718767842744,-503.78141916,0.0001646,2]
[329859814,1718767842755,-151.0,0.0001646,2]
[329859816,1718767842765,-161.860069,0.0001646,2]
[329859818,1718767842775,-648.44558047,0.0001646,2]
[329859820,1718767842784,-158.343406,0.0001646,2]
[329859822,1718767842794,-162.39688707,0.0001646,2]
[329859823,1718767842804,-500.0,0.0001646,2]
[329859825,1718767842815,-151.0,0.0001646,2]
[329859827,1718767842825,-513.69220089,0.0001646,2]
[329859830,1718767842835,-507.57834079,0.0001646,2]
[329859832,1718767842845,-507.55244015,0.0001646,2]
[329859834,1718767842855,-2447.96,0.0001646,2]
[329859836,1718767842864,-151.0,0.0001646,2]
[329859837,1718767842873,-173.867453,0.0001646,2]
[329859839,1718767842883,-151.0,0.0001646,2]
[329859842,1718767842895,-500.0,0.0001646,2]
[329859844,1718767842905,-531.67487862,0.0001646,2]
[329859845,1718767842915,-506.20816123,0.0001646,2]
[329859847,1718767842925,-151.0,0.0001646,2]
[329859849,1718767842935,-505.12682631,0.0001646,2]
[329859852,1718767842944,-510.02008965,0.0001646,2]
[329859853,1718767842954,-151.0,0.0001646,2]
[329859855,1718767842963,-151.0,0.0001646,2]
[329859858,1718767842973,-505.27983051,0.0001646,2]
[329859860,1718767842983,-500.0,0.0001646,2]